Portfolio,Expense Area,Cost Centre,Expense Type,Account Code,Amount,Supplier Name,SupplierId,Pay Date,Transaction No.
Sustainable Environment ,Street Scene,ENV30,Materials,0303,20.67,Arco Limited,100015,08/11/2012,10175513
Resources & Corporate Governance ,Street Cleansing,WSC00,Materials,0303,444.50,Arco Limited,100015,08/11/2012,10175513
Resources & Corporate Governance ,Toilet Cleaning,WBC01,Personal Protective Clothing,0340,5.15,Arco Limited,100015,08/11/2012,10175513
Resources & Corporate Governance ,Grounds Maintenance,WGM00,Personal Protective Clothing,0340,54.28,Arco Limited,100015,08/11/2012,10175513
Resources & Corporate Governance ,Highways,WHG00,Personal Protective Clothing,0340,7.76,Arco Limited,100015,08/11/2012,10175513
Resources & Corporate Governance ,Street Cleansing,WSC00,Personal Protective Clothing,0340,62.04,Arco Limited,100015,08/11/2012,10175513
Resources & Corporate Governance ,Garage Internal,WVR01,Personal Protective Clothing,0340,10.34,Arco Limited,100015,08/11/2012,10175513
Resources & Corporate Governance ,Domestic Waste Collection,WWC00,Personal Protective Clothing,0340,108.56,Arco Limited,100015,08/11/2012,10175513
Resources & Corporate Governance ,Trade Waste Collection,WWC01,Personal Protective Clothing,0340,10.34,Arco Limited,100015,08/11/2012,10175513
Resources & Corporate Governance ,Garage Internal,WVR01,Materials,0303,2.18,Arco Limited,100015,22/11/2012,10175736
Resources & Corporate Governance ,Domestic Waste Collection,WWC00,Materials,0303,289.50,Arco Limited,100015,22/11/2012,10175736
Housing Revenue Account ,Property Maintenance,MAN23,Personal Protective Clothing,0340,37.93,Arco Limited,100015,22/11/2012,10175736
Sustainable Environment,Regulatory Services,REG00,Personal Protective Clothing,0340,101.90,Arco Limited,100015,22/11/2012,10175736
Resources & Corporate Governance ,General Financial Services,GFS00,External Contractor & Operator,0742,6777.50,Audit Commission,100020,08/11/2012,10175927
Resources & Corporate Governance ,General Financial Services,GFS00,External Contractor & Operator,0742,1100.00,Audit Commission,100020,22/11/2012,10176521
Housing Revenue Account ,Unplanned Maintenance and Repair,UMR00,R&M External Contractors,0100,4284.55,AWM Electrical Contractors Ltd,100051,01/11/2012,10175589
Housing Revenue Account ,Unplanned Maintenance and Repair,UMR00,R&M External Contractors,0100,1468.15,AWM Electrical Contractors Ltd,100051,01/11/2012,10175590
Housing Revenue Account ,Unplanned Maintenance and Repair,UMR00,R&M External Contractors,0100,2240.67,AWM Electrical Contractors Ltd,100051,15/11/2012,10176039
Capital Program ,Crime Reduction Capital Schemes,HCE01,Capital Contract Payments,5000,55.18,AWM Electrical Contractors Ltd,100051,15/11/2012,10176039
Housing Revenue Account ,Unplanned Maintenance and Repair,UMR00,R&M External Contractors,0100,1235.53,AWM Electrical Contractors Ltd,100051,22/11/2012,10176465
Housing Revenue Account ,Unplanned Maintenance and Repair,UMR00,R&M External Contractors,0100,4441.99,AWM Electrical Contractors Ltd,100051,22/11/2012,10176652
Housing Revenue Account ,Unplanned Maintenance and Repair,UMR00,R&M External Contractors,0100,4200.92,AWM Electrical Contractors Ltd,100051,29/11/2012,10176832
Capital Program ,Rewiring,HCE20,Capital Contract Payments,5000,2450.00,AWM Electrical Contractors Ltd,100051,29/11/2012,10176832
Housing Revenue Account ,Unplanned Maintenance and Repair,UMR00,R&M External Contractors,0100,2163.65,AWM Electrical Contractors Ltd,100051,29/11/2012,10176833
Housing Revenue Account ,Unplanned Maintenance and Repair,UMR00,R&M External Contractors,0100,1530.78,Andy Woods Landscapes,100078,01/11/2012,10175592
Housing Revenue Account ,Unplanned Maintenance and Repair,UMR00,R&M External Contractors,0100,692.08,Andy Woods Landscapes,100078,15/11/2012,10176198
Capital Program ,Kitchen Modifications,HIK10,Capital Contract Payments,5000,13787.16,A C E Carpentry & Joinery Contractors Ltd,100085,15/11/2012,10175765
Capital Program ,Kitchen Modifications,HIK10,Capital Contract Payments,5000,6893.58,A C E Carpentry & Joinery Contractors Ltd,100085,22/11/2012,10176500
Capital Program ,Kitchen Modifications,HIK10,Capital Contract Payments,5000,6893.58,A C E Carpentry & Joinery Contractors Ltd,100085,29/11/2012,10176915
Resources & Corporate Governance ,Maintenance of Customer Services Systems,CIS21,Software Maintenance,0374,26822.97,Unit4 Business Software Ltd,100122,15/11/2012,10176164
Sustainable Environment ,Caldecott Park/Town Centre Area,PKS00,Maintenance of Equipment,0301,1039.50,A H S Ltd,100128,01/11/2012,10175443
Sustainable Environment ,Caldecott Park/Town Centre Area,PKS00,Maintenance of Equipment,0301,1039.50,A H S Ltd,100128,01/11/2012,10175444
Resources & Corporate Governance ,Borough Elections,ELC00,Rents,0140,3496.00,DC Leisure Rugby,100140,01/11/2012,10174763
Housing Revenue Account ,Control Centre (HRA),CCE00,Maintenance of Equipment,0301,4684.68,British Telecommunications Plc,100161,22/11/2012,10176390
Housing Revenue Account ,Multi-Storey Flats,MSF00,Telephone Expenses,0371,91.75,British Telecommunications Plc,100161,22/11/2012,10176390
Sustainable Inclusive Communities,Sewage Disposal Plant,SDP00,Telephone Expenses,0371,51.79,British Telecommunications Plc,100161,22/11/2012,10176390
Sustainable Inclusive Communities,Woodside Park,TVR00,Telephone Expenses,0371,102.91,British Telecommunications Plc,100161,22/11/2012,10176390
Housing Revenue Account ,Control Centre (HRA),CCE00,Telephone Expenses,0371,421.07,British Telecommunications Plc,100161,29/11/2012,10176776
Capital Program ,Crematorium Project,BUR04,External Contractor & Operator,0742,3187.00,Burrow Hill Ltd,100167,29/11/2012,10176629
Economy Development & Culture,General Highways Services,HIG00,External Contractor & Operator,0742,4561.04,Barcham Trees,100195,29/11/2012,10176630
Sustainable Inclusive Communities,CL Grants,CGS00,Grants To Voluntary Organisations,0720,2500.00,Benn Partnership Centre,100235,01/11/2012,10175399
Sustainable Inclusive Communities,CL Grants,CGS00,Grants To Voluntary Organisations,0720,2000.00,Benn Partnership Centre,100235,08/11/2012,10175929
Housing Revenue Account ,Unplanned Maintenance and Repair,UMR00,R&M External Contractors,0100,1042.73,Bowen Builders,100241,01/11/2012,10175585
Capital Program ,Fire Risk Assessment,HCE18,Capital Contract Payments,5000,17.61,Bowen Builders,100241,01/11/2012,10175585
Capital Program ,Disabled Adaptations,HCR01,Capital Contract Payments,5000,35.22,Bowen Builders,100241,01/11/2012,10175585
Housing Revenue Account ,Unplanned Maintenance and Repair,UMR00,R&M External Contractors,0100,6967.98,Bowen Builders,100241,08/11/2012,10175743
Housing Revenue Account ,Unplanned Maintenance and Repair,UMR00,R&M External Contractors,0100,1209.90,Bowen Builders,100241,15/11/2012,10176036
Housing Revenue Account ,Unplanned Maintenance and Repair,UMR00,R&M External Contractors,0100,1943.73,Bowen Builders,100241,15/11/2012,10176037
Housing Revenue Account ,Unplanned Maintenance and Repair,UMR00,R&M External Contractors,0100,573.15,Bowen Builders,100241,15/11/2012,10176133
Housing Revenue Account ,Unplanned Maintenance and Repair,UMR00,R&M External Contractors,0100,599.31,Bowen Builders,100241,22/11/2012,10176460
Housing Revenue Account ,Unplanned Maintenance and Repair,UMR00,R&M External Contractors,0100,1638.93,Bowen Builders,100241,22/11/2012,10176461
Housing Revenue Account ,Unplanned Maintenance and Repair,UMR00,R&M External Contractors,0100,988.00,Bowen Builders,100241,22/11/2012,10176649
Housing Revenue Account ,Unplanned Maintenance and Repair,UMR00,R&M External Contractors,0100,1012.99,Bowen Builders,100241,22/11/2012,10176650
Housing Revenue Account ,Unplanned Maintenance and Repair,UMR00,R&M External Contractors,0100,1187.67,Bowen Builders,100241,29/11/2012,10176783
Housing Revenue Account ,Unplanned Maintenance and Repair,UMR00,R&M External Contractors,0100,562.02,Bowen Builders,100241,29/11/2012,10176831
Housing Revenue Account ,Unplanned Maintenance and Repair,UMR00,R&M External Contractors,0100,1479.02,Barron McCann Ltd,100248,01/11/2012,10175407
Housing Revenue Account ,Unplanned Maintenance and Repair,UMR00,R&M External Contractors,0100,2162.80,Barron McCann Ltd,100248,22/11/2012,10176471
Housing Revenue Account ,Unplanned Maintenance and Repair,UMR00,R&M External Contractors,0100,808.00,Chillaire Service & Maintenance Ltd,100305,29/11/2012,10176476
Economy Development & Culture,Art Gallery and Museum,AGM00,Furniture,0302,467.94,City Electrical Factors  Ltd,100308,29/11/2012,10176734
Resources & Corporate Governance ,Customer and Information Strategy,CIS10,Hardware Maintenance,0376,500.00,Stone Computers,100390,08/11/2012,10175377
Sustainable Environment ,Clinical Waste,REF04,External Contractor & Operator,0742,513.03,OCS Group UK Ltd t/a Cannon,100436,15/11/2012,10176082
Resources & Corporate Governance ,Domestic Waste Collection,WWC00,Vehicle Repair and Maintenance,0200,822.52,Dennis Eagle Ltd,100559,22/11/2012,10175110
Resources & Corporate Governance ,Domestic Waste Collection,WWC00,Vehicle Repair and Maintenance,0200,458.84,Dennis Eagle Ltd,100559,22/11/2012,10176272
Resources & Corporate Governance ,Domestic Waste Collection,WWC00,Vehicle Repair and Maintenance,0200,486.72,Dennis Eagle Ltd,100559,22/11/2012,10176273
Capital Program ,Purchase of Vehicles,VHC00,Miscellaneous Capital Expenditure,5020,120500.00,Dennis Eagle Ltd,100559,29/11/2012,10177006
Capital Program ,Private Sector Renovation Loans,REN00,Capital Contract Payments,5000,1591.80,Bob Doyle,100575,29/11/2012,10176701
Housing Revenue Account ,Unplanned Maintenance and Repair,UMR00,R&M External Contractors,0100,13770.47,JADA Building & Maintenance Services Ltd,100583,01/11/2012,10175404
Housing Revenue Account ,Property Maintenance,MAN23,Estates,0457,27.50,JADA Building & Maintenance Services Ltd,100583,01/11/2012,10175404
Capital Program ,Fire Risk Assessment,HCE18,Capital Contract Payments,5000,57.06,JADA Building & Maintenance Services Ltd,100583,01/11/2012,10175404
Capital Program ,Disabled Adaptations,HCR01,Capital Contract Payments,5000,356.16,JADA Building & Maintenance Services Ltd,100583,01/11/2012,10175404
Capital Program ,Bathroom Modifications,HIS01,Capital Contract Payments,5000,883.35,JADA Building & Maintenance Services Ltd,100583,01/11/2012,10175404
Capital Program ,Bathroom Modifications,HIS01,Capital Contract Payments,5000,2495.00,JADA Building & Maintenance Services Ltd,100583,08/11/2012,10175495
Housing Revenue Account ,Unplanned Maintenance and Repair,UMR00,R&M External Contractors,0100,2930.56,JADA Building & Maintenance Services Ltd,100583,01/11/2012,10175586
Capital Program ,Fire Risk Assessment,HCE18,Capital Contract Payments,5000,30.23,JADA Building & Maintenance Services Ltd,100583,01/11/2012,10175586
Capital Program ,Disabled Adaptations,HCR01,Capital Contract Payments,5000,16.62,JADA Building & Maintenance Services Ltd,100583,01/11/2012,10175586
Capital Program ,Bathroom Modifications,HIS01,Capital Contract Payments,5000,8976.00,JADA Building & Maintenance Services Ltd,100583,01/11/2012,10175586
Capital Program ,Bathroom Modifications,HIS01,Capital Contract Payments,5000,2495.00,JADA Building & Maintenance Services Ltd,100583,29/11/2012,10176498
Housing Revenue Account ,Unplanned Maintenance and Repair,UMR00,R&M External Contractors,0100,7012.48,JADA Building & Maintenance Services Ltd,100583,22/11/2012,10176509
Housing Revenue Account ,Sheltered Housing Team,MAN21,Estates,0457,52.73,JADA Building & Maintenance Services Ltd,100583,22/11/2012,10176509
Capital Program ,Disabled Adaptations,HCR01,Capital Contract Payments,5000,1616.67,JADA Building & Maintenance Services Ltd,100583,22/11/2012,10176509
Capital Program ,Bathroom Modifications,HIS01,Capital Contract Payments,5000,4990.00,JADA Building & Maintenance Services Ltd,100583,29/11/2012,10176588
Housing Revenue Account ,Unplanned Maintenance and Repair,UMR00,R&M External Contractors,0100,4954.32,JADA Building & Maintenance Services Ltd,100583,29/11/2012,10176955
Housing Revenue Account ,Sheltered Housing Team,MAN21,Estates,0457,30.23,JADA Building & Maintenance Services Ltd,100583,29/11/2012,10176955
Capital Program ,Fire Risk Assessment,HCE18,Capital Contract Payments,5000,1401.82,JADA Building & Maintenance Services Ltd,100583,29/11/2012,10176955
Capital Program ,Disabled Adaptations,HCR01,Capital Contract Payments,5000,421.63,JADA Building & Maintenance Services Ltd,100583,29/11/2012,10176955
Economy Development & Culture,Grants and Subscriptions,LGS00,Grants To Voluntary Organisations,0720,1000.00,Draycote Water Sailing Club,100591,29/11/2012,10177016
Housing Revenue Account ,Unplanned Maintenance and Repair,UMR00,R&M External Contractors,0100,2783.66,Lee Davies Decorating,100600,15/11/2012,10176199
Housing Revenue Account ,Albert Square AP,AGP20,Gas,0131,1522.02,ESPO,100641,22/11/2012,10176400
Housing Revenue Account ,Lesley Souter House AP,AGP16,Gas,0131,1051.44,ESPO,100641,29/11/2012,10176401
Housing Revenue Account ,Tanser Court AP,AGP17,Gas,0131,1269.27,ESPO,100641,22/11/2012,10176402
Resources & Corporate Governance,Corporate Property Central Utilities,CPA02,Gas,0131,1406.95,ESPO,100641,22/11/2012,10176421
Resources & Corporate Governance ,Trade Waste Collection,WWC01,Materials,0303,749.00,Container Services UK Limited,100811,01/11/2012,10175531
Resources & Corporate Governance ,Street Cleansing,WSC00,Vehicle Repair and Maintenance,0200,1500.00,Ford & Slater,100817,29/11/2012,10176589
,Balance Sheet,BS,Car Leasing Scheme,9244,2603.30,Lex Autolease Ltd,100844,08/11/2012,10175894
,Balance Sheet,BS,Car Leasing Scheme,9244,2375.26,Lex Autolease Ltd,100844,15/11/2012,10176056
,Balance Sheet,BS,Car Leasing Scheme,9244,3325.56,Lex Autolease Ltd,100844,15/11/2012,10176058
,Balance Sheet,BS,Car Leasing Scheme,9244,3902.10,Lex Autolease Ltd,100844,15/11/2012,10176059
,Balance Sheet,BS,Car Leasing Scheme,9244,4575.91,Lex Autolease Ltd,100844,29/11/2012,10176647
Resources & Corporate Governance ,Domestic Waste Collection,WWC00,Vehicle Repair and Maintenance,0200,468.48,FAUN Zoeller (UK) Ltd,100871,29/11/2012,10176660
Resources & Corporate Governance ,Human Resources,RES30,Recruitment Expenses,0012,626.40,TMP (UK) LTD,100972,15/11/2012,10176125
Capital Program ,Parish and Rural Capital Spending,CGR03,Capital Grants,5014,3261.98,Harborough Magna Parish Council,100988,15/11/2012,10176227
Capital Program ,Bathroom Modifications,HIS01,Capital Contract Payments,5000,8955.00,B Hartwell Plumbers Ltd,100989,15/11/2012,10175913
Resources & Corporate Governance ,Domestic Waste Collection,WWC00,Vehicle Repair and Maintenance,0200,850.00,H.L. Smith (Transmissions) Ltd,101096,15/11/2012,10175719
Resources & Corporate Governance ,Customer and Information Strategy,CIS10,Hardware Maintenance,0376,1650.00,Insite Ltd,101144,08/11/2012,10175699
Housing Revenue Account ,Control Centre (HRA),CCE00,New Equipment,0300,1595.00,Chubb Systems LTD,101154,01/11/2012,10175099
Resources & Corporate Governance ,Domestic Waste Collection,WWC00,Materials,0303,2352.00,Imperial Polythene Products Limited,101157,08/11/2012,10175737
Sustainable Environment ,Caldecott Park/Town Centre Area,PKS00,Maintenance of Equipment,0301,636.58,Kompan Ltd,101199,08/11/2012,10175298
Resources & Corporate Governance ,Grounds Maintenance,WGM00,External Contractor & Operator,0742,7344.00,K A Hicks,101216,01/11/2012,10175158
Resources & Corporate Governance ,Grounds Maintenance,WGM00,External Contractor & Operator,0742,7484.00,K A Hicks,101216,22/11/2012,10176261
Sustainable Environment ,Caldecott Park/Town Centre Area,PKS00,External Contractor & Operator,0742,850.00,Lilbourne Turf Supplies,101225,15/11/2012,10175722
Sustainable Environment ,Grass Cutting,PKS13,External Contractor & Operator,0742,567.00,Marton Parish Council,101285,08/11/2012,10175761
Housing Revenue Account ,Repainting Schemes,UMR02,R&M External Contractors,0100,1748.37,MBG Decorators (Rugby Ltd),101288,01/11/2012,10175458
Housing Revenue Account ,Unplanned Maintenance and Repair,UMR00,R&M External Contractors,0100,1099.91,MBG Decorators (Rugby Ltd),101288,15/11/2012,10176131
Housing Revenue Account ,Repainting Schemes,UMR02,R&M External Contractors,0100,578.00,MBG Decorators (Rugby Ltd),101288,15/11/2012,10176131
Resources & Corporate Governance,Handy man,WHM00,Materials,0303,1060.00,Melbros Ltd,101291,08/11/2012,10173691
Resources & Corporate Governance,Handy man,WHM00,Materials,0303,530.00,Melbros Ltd,101291,08/11/2012,10173698
Resources & Corporate Governance,Handy man,WHM00,Materials,0303,867.00,Melbros Ltd,101291,15/11/2012,10174501
Resources & Corporate Governance,Handy man,WHM00,Materials,0303,554.40,Melbros Ltd,101291,29/11/2012,10174978
Resources & Corporate Governance,Handy man,WHM00,Materials,0303,949.00,Melbros Ltd,101291,22/11/2012,10176306
Housing Revenue Account ,Unplanned Maintenance and Repair,UMR00,R&M External Contractors,0100,2591.00,Msm Environmental Services,101317,01/11/2012,10175403
Resources & Corporate Governance ,Trade Waste Collection,WWC01,Vehicle Repair and Maintenance,0200,1104.18,Noden Truck Centre Ltd,101368,01/11/2012,10175148
Resources & Corporate Governance ,Street Cleansing,WSC00,Vehicle Repair and Maintenance,0200,860.36,Noden Truck Centre Ltd,101368,22/11/2012,10176277
Resources & Corporate Governance ,Domestic Waste Collection,WWC00,Vehicle Repair and Maintenance,0200,620.14,Noden Truck Centre Ltd,101368,22/11/2012,10176355
Sustainable Inclusive Communities,CL Grants,CGS00,Grants To Voluntary Organisations,0720,2500.00,New Bilton Community Association,101389,01/11/2012,10175397
Economy Development & Culture,Visitor Centre,VSC00,Events Tickets - Zero Rated,1405,1030.94,National Express Ltd,101392,08/11/2012,10175697
Capital Program ,Disabled Facilities Grant,REN01,Capital Grants,5014,766.71,Heart of England Housing Association,101400,15/11/2012,10176241
Capital Program ,Disabled Facilities Grant,REN01,Capital Grants,5014,2385.00,Heart of England Housing Association,101400,15/11/2012,10176266
Capital Program ,Disabled Facilities Grant,REN01,Capital Grants,5014,1726.47,Heart of England Housing Association,101400,15/11/2012,10176269
Capital Program ,Disabled Facilities Grant,REN01,Capital Grants,5014,622.53,Heart of England Housing Association,101400,29/11/2012,10176849
Resources & Corporate Governance ,Grounds Maintenance,WGM00,Vehicle Running Costs,0201,430.00,Post Office Ltd,101429,08/11/2012,10175916
Resources & Corporate Governance ,Street Cleansing,WSC00,Vehicle Running Costs,0201,641.00,Post Office Ltd,101429,08/11/2012,10175916
Resources & Corporate Governance ,Garage Internal,WVR01,Vehicle Running Costs,0201,215.00,Post Office Ltd,101429,08/11/2012,10175916
Resources & Corporate Governance ,Domestic Waste Collection,WWC00,Vehicle Running Costs,0201,650.00,Post Office Ltd,101429,08/11/2012,10175916
Sustainable Inclusive Communities,Sewage Disposal Plant,SDP00,R&M External Contractors,0100,520.28,PJT Pumping Services,101438,01/11/2012,10175469
Sustainable Environment ,Caldecott Park/Town Centre Area,PKS00,R&M External Contractors,0100,512.52,PJT Pumping Services,101438,01/11/2012,10175470
Sustainable Environment ,Allotments,ALL00,R&M External Contractors,0100,400.00,Post To Post Fencing,101490,08/11/2012,10174923
Sustainable Environment ,Caldecott Park/Town Centre Area,PKS00,Maintenance of Equipment,0301,125.00,Post To Post Fencing,101490,08/11/2012,10174923
Sustainable Environment ,Caldecott Park/Town Centre Area,PKS00,External Contractor & Operator,0742,180.00,Post To Post Fencing,101490,08/11/2012,10174923
,User Balance Sheet Cost Centre,BSU,Section Agreements,9865,2635.00,Post To Post Fencing,101490,08/11/2012,10174923
Capital Program ,Heating Upgrades,HIM01,Capital Contract Payments,5000,32242.00,Reeds Plumbing & Heating Contractors Ltd,101504,15/11/2012,10175762
Capital Program ,Heating Upgrades,HIM01,Capital Contract Payments,5000,5465.00,Reeds Plumbing & Heating Contractors Ltd,101504,22/11/2012,10176470
Capital Program ,Private Sector Renovation Loans,REN00,Capital Contract Payments,5000,3720.00,Reeds Plumbing & Heating Contractors Ltd,101504,29/11/2012,10176700
Sustainable Environment ,Market,MKT00,BIDS levy,0145,2197.87,Rugby Borough Council,101516,15/11/2012,10176026
Economy Development & Culture,Art Gallery and Museum,AGM00,BIDS levy,0145,8803.69,Rugby Borough Council,101516,15/11/2012,10176028
Economy Development & Culture,James St. Multi-storey Car Park,CPK02,BIDS levy,0145,2197.87,Rugby Borough Council,101516,15/11/2012,10176031
Economy Development & Culture,Car Parks General,CPK01,BIDS levy,0145,2197.87,Rugby Borough Council,101516,15/11/2012,10176032
Economy Development & Culture,Car Parks General,CPK01,BIDS levy,0145,1160.00,Rugby Borough Council,101516,15/11/2012,10176033
Resources & Corporate Governance ,WSU Depot,WDP00,Rates,0141,586.61,Rugby Borough Council,101516,29/11/2012,10176964
Economy Development & Culture,Art Gallery and Museum,AGM00,Postage & Distribution,0370,0.76,Royal Mail,101554,01/11/2012,10174880
Economy Development & Culture,Building Control Services,BCS00,Postage & Distribution,0370,0.19,Royal Mail,101554,01/11/2012,10174880
Economy Development & Culture,Building Regulation Fee Earning Account,BCS99,Postage & Distribution,0370,0.25,Royal Mail,101554,01/11/2012,10174880
Economy Development & Culture,Car Parks General,CPK01,Postage & Distribution,0370,57.84,Royal Mail,101554,01/11/2012,10174880
Resources & Corporate Governance,Central Business Support Services,CSS15,Postage & Distribution,0370,193.37,Royal Mail,101554,01/11/2012,10174880
Resources & Corporate Governance ,Council Tax and NNDR Collection,CTX01,Postage & Distribution,0370,203.69,Royal Mail,101554,01/11/2012,10174880
Economy Development & Culture,Decrim. of Car Parking on street parking,DPE02,Postage & Distribution,0370,231.35,Royal Mail,101554,01/11/2012,10174880
Resources & Corporate Governance ,Electoral Registration,ERG00,Postage & Distribution,0370,71.70,Royal Mail,101554,01/11/2012,10174880
Sustainable Inclusive Communities,Housing Benefit Administration,HBA00,Postage & Distribution,0370,154.04,Royal Mail,101554,01/11/2012,10174880
Housing Revenue Account ,Supervision and Management General,MAN00,Postage & Distribution,0370,149.99,Royal Mail,101554,01/11/2012,10174880
Economy Development & Culture,Planning General/Income,PLN00,Postage & Distribution,0370,202.44,Royal Mail,101554,01/11/2012,10174880
Economy Development & Culture,Visitor Centre,VSC00,Postage & Distribution,0370,2.21,Royal Mail,101554,01/11/2012,10174880
Resources & Corporate Governance ,General Administration,WAD00,Postage & Distribution,0370,21.91,Royal Mail,101554,01/11/2012,10174880
Resources & Corporate Governance ,Borough Elections,ELC00,Postage & Distribution,0370,22186.41,Royal Mail,101554,01/11/2012,10175542
Housing Revenue Account ,Unplanned Maintenance and Repair,UMR00,R&M External Contractors,0100,1737.99,Rugby Plastering Services,101602,01/11/2012,10175456
Resources & Corporate Governance,Handy man,WHM00,External Contractor & Operator,0742,2482.58,Rugby Plastering Services,101602,29/11/2012,10175657
Housing Revenue Account ,Unplanned Maintenance and Repair,UMR00,R&M External Contractors,0100,864.82,Rugby Plastering Services,101602,15/11/2012,10176134
Resources & Corporate Governance,Handy man,WHM00,External Contractor & Operator,0742,3722.68,Rugby Plastering Services,101602,29/11/2012,10176157
Housing Revenue Account ,Unplanned Maintenance and Repair,UMR00,R&M External Contractors,0100,3450.00,Rugby Plastering Services,101602,15/11/2012,10176196
Housing Revenue Account ,Unplanned Maintenance and Repair,UMR00,R&M External Contractors,0100,4075.91,Rugby Plastering Services,101602,29/11/2012,10176827
Housing Revenue Account ,Lesley Souter House AP,AGP16,Water Services,0143,1517.29,Severn Trent Water Ltd,101610,29/11/2012,10176924
Capital Program ,Disabled Adaptations,HCR01,Capital Contract Payments,5000,870.00,Stannah Stairlifts Ltd,101623,01/11/2012,10175334
Capital Program ,Disabled Facilities Grant,REN01,Capital Grants,5014,1932.36,Stannah Stairlifts Ltd,101623,08/11/2012,10175693
Capital Program ,Disabled Facilities Grant,REN01,Capital Grants,5014,5823.00,Stannah Stairlifts Ltd,101623,08/11/2012,10175878
Capital Program ,Disabled Facilities Grant,REN01,Capital Grants,5014,2550.00,Stannah Stairlifts Ltd,101623,08/11/2012,10175879
Capital Program ,Disabled Facilities Grant,REN01,Capital Grants,5014,4530.00,Stannah Stairlifts Ltd,101623,15/11/2012,10176137
Capital Program ,Disabled Facilities Grant,REN01,Capital Grants,5014,5363.00,Stannah Stairlifts Ltd,101623,22/11/2012,10176483
Resources & Corporate Governance ,Legal Services,DEM20,Ref. Books Journals & Magazines,0353,3608.00,Sweet & Maxwell Limited,101632,22/11/2012,10176490
Capital Program ,Open Spaces Refurbishment,LEI08,Capital Contract Payments,5000,1421.00,Smp (Playgrounds) Ltd,101637,29/11/2012,10171479
Capital Program ,Kitchen Modifications,HIK10,Capital Contract Payments,5000,1753.23,The Symphony Group Plc,101644,22/11/2012,10176386
Resources & Corporate Governance,Corporate Property R&M,CPA01,R&M External Contractors,0100,939.50,Secom Plc,101671,08/11/2012,10175602
Resources & Corporate Governance,Corporate Property R&M,CPA01,R&M External Contractors,0100,939.50,Secom Plc,101671,08/11/2012,10175603
Resources & Corporate Governance ,Domestic Waste Collection,WWC00,Vehicle Running Costs,0201,597.00,HI-Q Motorway,101736,01/11/2012,10175533
Resources & Corporate Governance ,Domestic Waste Collection,WWC00,Vehicle Running Costs,0201,525.50,HI-Q Motorway,101736,08/11/2012,10175675
Resources & Corporate Governance ,Domestic Waste Collection,WWC00,Vehicle Running Costs,0201,588.00,HI-Q Motorway,101736,22/11/2012,10176353
Resources & Corporate Governance ,Domestic Waste Collection,WWC00,Vehicle Running Costs,0201,836.73,HI-Q Motorway,101736,22/11/2012,10176558
Housing Revenue Account ,Sheltered Housing,AGP00,Telephone Expenses,0371,393.82,Vodafone Corporate Ltd,101831,08/11/2012,10175321
Economy Development & Culture,Building Control Services,BCS00,Telephone Expenses,0371,2.62,Vodafone Corporate Ltd,101831,08/11/2012,10175321
Economy Development & Culture,Building Regulation Fee Earning Account,BCS99,Telephone Expenses,0371,3.48,Vodafone Corporate Ltd,101831,08/11/2012,10175321
Housing Revenue Account ,Control Centre (HRA),CCE00,Telephone Expenses,0371,12.42,Vodafone Corporate Ltd,101831,08/11/2012,10175321
Resources & Corporate Governance ,Council Tax and NNDR Collection,CTX01,Telephone Expenses,0371,7.52,Vodafone Corporate Ltd,101831,08/11/2012,10175321
Sustainable Inclusive Communities,Housing Options Team,HOT00,Telephone Expenses,0371,49.29,Vodafone Corporate Ltd,101831,08/11/2012,10175321
Housing Revenue Account ,Supervision and Management General,MAN00,Telephone Expenses,0371,363.41,Vodafone Corporate Ltd,101831,08/11/2012,10175321
Housing Revenue Account ,Estate Management,MAN22,Telephone Expenses,0371,54.00,Vodafone Corporate Ltd,101831,08/11/2012,10175321
Housing Revenue Account ,Multi-Storey Flats,MSF00,Telephone Expenses,0371,10.64,Vodafone Corporate Ltd,101831,08/11/2012,10175321
Economy Development & Culture,Car Parks General,CPK01,Telephone Expenses,0371,197.99,Vodafone Corporate Ltd,101831,08/11/2012,10175438
Economy Development & Culture,Decrim. of Car Parking on street parking,DPE02,Telephone Expenses,0371,791.95,Vodafone Corporate Ltd,101831,08/11/2012,10175438
Capital Program ,Pettiver Crescent,PCH00,Capital Contract Payments,5000,1863.00,Warwickshire County Council,101840,08/11/2012,10175446
Sustainable Environment ,Grass Cutting,PKS13,External Contractor & Operator,0742,578.00,Withybrook Parish Council,101849,08/11/2012,10175903
Resources & Corporate Governance ,Human Resources Centralised Services,RES31,Training fees,0011,789.00,West Midlands Councils,101880,22/11/2012,10176567
Resources & Corporate Governance ,Human Resources Centralised Services,RES31,Training fees,0011,789.00,West Midlands Councils,101880,22/11/2012,10176568
Resources & Corporate Governance ,Trade Waste Collection,WWC01,Removal of Waste - WCC,0711,47127.96,Warwickshire County Council,101893,29/11/2012,10175426
Economy Development & Culture,Planning General/Income,PLN00,Consultancy Costs,0740,5294.00,Warwickshire County Council,101893,01/11/2012,10175467
Resources & Corporate Governance ,Land Charges,LCH00,Payments to Other Local Authorities,0710,7445.30,Warwickshire County Council,101893,15/11/2012,10176145
Housing Revenue Account ,Unplanned Maintenance and Repair,UMR00,R&M External Contractors,0100,4821.64,Warwickshire County Council,101893,22/11/2012,10176478
Resources & Corporate Governance,Handy man,WHM00,External Contractor & Operator,0742,3160.00,Darren Wilson Roofing Ltd,101911,22/11/2012,10174159
Resources & Corporate Governance,Handy man,WHM00,External Contractor & Operator,0742,2100.00,Darren Wilson Roofing Ltd,101911,22/11/2012,10174718
Housing Revenue Account ,Unplanned Maintenance and Repair,UMR00,R&M External Contractors,0100,4456.32,Darren Wilson Roofing Ltd,101911,22/11/2012,10176651
Resources & Corporate Governance ,Domestic Waste Collection,WWC00,Vehicle Repair and Maintenance,0200,478.32,Watling JCB Limited,101922,22/11/2012,10176346
Housing Revenue Account ,Unplanned Maintenance and Repair,UMR00,R&M External Contractors,0100,1010.68,Adroit Services Ltd,101939,01/11/2012,10175457
Capital Program ,Disabled Adaptations,HCR01,Capital Contract Payments,5000,97.21,Adroit Services Ltd,101939,01/11/2012,10175457
Capital Program ,Heating Upgrades,HIM01,Capital Contract Payments,5000,2076.00,Adroit Services Ltd,101939,01/11/2012,10175457
Capital Program ,Electric to Gas Conversions,HIM04,Capital Contract Payments,5000,8740.38,Adroit Services Ltd,101939,08/11/2012,10175646
Capital Program ,Electric to Gas Conversions,HIM04,Capital Contract Payments,5000,7100.76,Adroit Services Ltd,101939,08/11/2012,10175710
Housing Revenue Account ,Unplanned Maintenance and Repair,UMR00,R&M External Contractors,0100,1107.87,Adroit Services Ltd,101939,08/11/2012,10175745
Capital Program ,Electric to Gas Conversions,HIM04,Capital Contract Payments,5000,5024.76,Adroit Services Ltd,101939,22/11/2012,10176152
Housing Revenue Account ,Unplanned Maintenance and Repair,UMR00,R&M External Contractors,0100,1721.54,Adroit Services Ltd,101939,15/11/2012,10176197
Capital Program ,Electric to Gas Conversions,HIM04,Capital Contract Payments,5000,5024.76,Adroit Services Ltd,101939,22/11/2012,10176499
Housing Revenue Account ,Unplanned Maintenance and Repair,UMR00,R&M External Contractors,0100,1017.89,Adroit Services Ltd,101939,29/11/2012,10176785
Housing Revenue Account ,Unplanned Maintenance and Repair,UMR00,R&M External Contractors,0100,1162.86,Adroit Services Ltd,101939,29/11/2012,10176786
Capital Program ,Electric to Gas Conversions,HIM04,Capital Contract Payments,5000,7100.76,Adroit Services Ltd,101939,29/11/2012,10176914
Housing Revenue Account ,Unplanned Maintenance and Repair,UMR00,R&M External Contractors,0100,1517.94,Adroit Services Ltd,101939,29/11/2012,10176958
Capital Program ,Open Spaces Refurbishment,LEI08,Capital Contract Payments,5000,5760.00,Furnitubes International Ltd,102084,08/11/2012,10175569
Resources & Corporate Governance ,Change Team,BTR50,Payments to Other Local Authorities,0710,32814.20,Nuneaton & Bedworth Borough Council,108060,29/11/2012,10176603
Housing Revenue Account ,Unplanned Maintenance and Repair,UMR00,R&M External Contractors,0100,892.00,Ser-Tec Systems Ltd,108074,29/11/2012,10176531
Resources & Corporate Governance ,Street Cleansing,WSC00,Vehicle Repair and Maintenance,0200,1251.51,Scarab Sweepers Ltd,108252,22/11/2012,10176623
Resources & Corporate Governance ,Central Telephone Service,TEL00,Telephone Expenses,0371,906.54,British Telecommunications PLC,108425,29/11/2012,10176718
Capital Program ,Vehicle Workshop Extension,VWE00,Capital Contract Payments,5000,1164.40,Lemon Groundwork Solutions Ltd,109131,29/11/2012,10176815
Economy Development & Culture,Planning Control,PLN01,External Legal Costs,0741,1000.00,SATNAM SINGH CHOONGH,109271,01/11/2012,10174716
Sustainable Inclusive Communities,CL Grants,CGS00,Grants To Voluntary Organisations,0720,1935.00,Old Laurentian Junior Rugby Football Club,109770,15/11/2012,10176143
Resources & Corporate Governance ,Grounds Maintenance,WGM00,Materials,0303,825.00,Lubbe & Sons (Bulbs) Ltd,110225,22/11/2012,10176173
Resources & Corporate Governance ,Garage Internal,WVR01,Materials,0303,34230.00,Watson Petroleum,110361,08/11/2012,10175937
Resources & Corporate Governance,Handy man,WHM00,Materials,0303,845.32,Linnell Bros. Ltd,110449,15/11/2012,10175995
Resources & Corporate Governance,Corporate Property R&M,CPA01,R&M External Contractors,0100,785.85,Croxford Electrical,110451,08/11/2012,10175432
Economy Development & Culture,Grants and Subscriptions,LGS00,Grants To Voluntary Organisations,0720,1000.00,Rugby Swimming Club,110565,29/11/2012,10177013
Resources & Corporate Governance ,Warwickshire On Line Partnership,JCC10,Payments to Other Local Authorities,0710,13472.57,Warwick District Council,111228,01/11/2012,10175427
Resources & Corporate Governance ,Warwickshire On Line Partnership,JCC10,Payments to Other Local Authorities,0710,7900.00,Warwick District Council,111228,22/11/2012,10176474
Resources & Corporate Governance,Central Business Support Services,CSS15,Photocopying,0354,684.60,Ricoh UK Limited,111532,01/11/2012,10175330
Resources & Corporate Governance,Central Business Support Services,CSS15,Photocopying,0354,511.26,Ricoh UK Limited,111532,15/11/2012,10176047
Resources & Corporate Governance,Central Business Support Services,CSS15,Photocopying,0354,3030.55,Ricoh UK Limited,111532,29/11/2012,10176722
Resources & Corporate Governance,Central Business Support Services,CSS15,Photocopying,0354,4353.39,Ricoh UK Limited,111532,29/11/2012,10176724
Resources & Corporate Governance,Central Business Support Services,CSS15,Photocopying,0354,437.49,Ricoh UK Limited,111532,29/11/2012,10176725
Resources & Corporate Governance,Central Business Support Services,CSS15,Photocopying,0354,2202.19,Ricoh UK Limited,111532,29/11/2012,10176726
Resources & Corporate Governance ,Domestic Waste Collection,WWC00,Vehicle Running Costs,0201,560.00,DVLA,111540,15/11/2012,10176194
Resources & Corporate Governance,Corporate Property Central Utilities,CPA02,Electricity,0130,317.70,Rugby & Northampton Athletic Club,112392,22/11/2012,10176264
Resources & Corporate Governance,Corporate Property Central Utilities,CPA02,Water Services,0143,204.63,Rugby & Northampton Athletic Club,112392,22/11/2012,10176264
Sustainable Environment,Regulatory Services,REG00,Health and Safety Costs,0449,1500.00,Civica UK Ltd,112724,22/11/2012,10175648
Resources & Corporate Governance ,Domestic Waste Collection,WWC00,Agency Staff,0003,508.37,Extra Personnel Limited,112996,01/11/2012,10175451
Resources & Corporate Governance ,Domestic Waste Collection,WWC00,Agency Staff,0003,619.84,Extra Personnel Limited,112996,08/11/2012,10175720
Resources & Corporate Governance ,Domestic Waste Collection,WWC00,Agency Staff,0003,879.78,Extra Personnel Limited,112996,15/11/2012,10176107
Resources & Corporate Governance ,Domestic Waste Collection,WWC00,Agency Staff,0003,508.37,Extra Personnel Limited,112996,22/11/2012,10176458
Economy Development & Culture,Ken Marriott Leisure Centre,KML00,External Contractor & Operator,0742,25181.06,DC Leisure Management Ltd (Otium),114443,15/11/2012,10176144
Resources & Corporate Governance ,Garage Internal,WVR01,Vehicle Running Costs,0201,3648.00,Vehicle and Operator Services Agency,114706,08/11/2012,10175967
Housing Revenue Account ,Unplanned Maintenance and Repair,UMR00,R&M External Contractors,0100,1341.40,Temple Lifts Ltd,114738,15/11/2012,10175912
Sustainable Inclusive Communities,Housing Options Team,HOT00,Rents,0140,460.00,Diamond House Hotel,115070,22/11/2012,10176151
Sustainable Inclusive Communities,Housing Options Team,HOT00,Rents,0140,455.00,Diamond House Hotel,115070,22/11/2012,10176228
Housing Revenue Account ,Unplanned Maintenance and Repair,UMR00,R&M External Contractors,0100,446.88,Wilkinson Environmental Ltd,115285,29/11/2012,10176640
Resources & Corporate Governance ,General Administration,WAD00,Training fees,0011,845.00,OSTAS,117097,22/11/2012,10176457
Sustainable Environment ,Cemeteries General,CEM00,External Contractor & Operator,0742,105.00,Lushglen,117749,29/11/2012,10176933
Sustainable Environment ,Caldecott Park/Town Centre Area,PKS00,External Contractor & Operator,0742,405.00,Lushglen,117749,29/11/2012,10176933
Resources & Corporate Governance ,Human Resources Centralised Services,RES31,Training fees,0011,3575.00,Birmingham City University,117847,01/11/2012,10175376
Economy Development & Culture,Grants and Subscriptions,LGS00,Grants To Voluntary Organisations,0720,516.00,Dunchurch & Bilton Cricket Club,118888,29/11/2012,10177009
Resources & Corporate Governance,Corporate Property Central Utilities,CPA02,Electricity,0130,7912.07,Southern Electric,118976,01/11/2012,10174776
Resources & Corporate Governance,Corporate Property Central Utilities,CPA02,Electricity,0130,3407.25,Southern Electric,118976,01/11/2012,10174835
Resources & Corporate Governance ,WSU Depot,WDP00,Electricity,0130,1910.62,Southern Electric,118976,01/11/2012,10174835
Resources & Corporate Governance,Corporate Property Central Utilities,CPA02,Electricity,0130,9264.21,Southern Electric,118976,22/11/2012,10176230
Resources & Corporate Governance,Corporate Property Central Utilities,CPA02,Electricity,0130,-2190.25,Southern Electric,118976,22/11/2012,10176231
Sustainable Inclusive Communities,CL Grants,CGS00,Grants To Voluntary Organisations,0720,2500.00,Overslade Community Association,119698,01/11/2012,10175400
Resources & Corporate Governance,Handy man,WHM00,Agency Staff,0003,274.70,G-Staff Ltd,120173,01/11/2012,10175394
Resources & Corporate Governance ,Street Cleansing,WSC00,Agency Staff,0003,610.79,G-Staff Ltd,120173,01/11/2012,10175394
Resources & Corporate Governance ,Domestic Waste Collection,WWC00,Agency Staff,0003,973.76,G-Staff Ltd,120173,01/11/2012,10175394
Resources & Corporate Governance,Handy man,WHM00,Agency Staff,0003,553.39,G-Staff Ltd,120173,08/11/2012,10175715
Resources & Corporate Governance ,Street Cleansing,WSC00,Agency Staff,0003,368.89,G-Staff Ltd,120173,08/11/2012,10175715
Resources & Corporate Governance ,Domestic Waste Collection,WWC00,Agency Staff,0003,1769.48,G-Staff Ltd,120173,08/11/2012,10175715
Resources & Corporate Governance ,Trade Waste Collection,WWC01,Agency Staff,0003,352.60,G-Staff Ltd,120173,08/11/2012,10175715
Resources & Corporate Governance,Handy man,WHM00,Agency Staff,0003,613.55,G-Staff Ltd,120173,22/11/2012,10176113
Resources & Corporate Governance ,Street Cleansing,WSC00,Agency Staff,0003,368.89,G-Staff Ltd,120173,22/11/2012,10176113
Resources & Corporate Governance ,Domestic Waste Collection,WWC00,Agency Staff,0003,1572.95,G-Staff Ltd,120173,22/11/2012,10176113
Resources & Corporate Governance ,Trade Waste Collection,WWC01,Agency Staff,0003,352.60,G-Staff Ltd,120173,22/11/2012,10176113
Resources & Corporate Governance,Handy man,WHM00,Agency Staff,0003,332.70,G-Staff Ltd,120173,22/11/2012,10176448
Resources & Corporate Governance ,Street Cleansing,WSC00,Agency Staff,0003,373.88,G-Staff Ltd,120173,22/11/2012,10176448
Resources & Corporate Governance ,Domestic Waste Collection,WWC00,Agency Staff,0003,1866.39,G-Staff Ltd,120173,22/11/2012,10176448
Resources & Corporate Governance ,Trade Waste Collection,WWC01,Agency Staff,0003,585.59,G-Staff Ltd,120173,22/11/2012,10176448
Resources & Corporate Governance,Handy man,WHM00,Agency Staff,0003,410.32,G-Staff Ltd,120173,29/11/2012,10176775
Resources & Corporate Governance ,Street Cleansing,WSC00,Agency Staff,0003,702.76,G-Staff Ltd,120173,29/11/2012,10176775
Resources & Corporate Governance ,Domestic Waste Collection,WWC00,Agency Staff,0003,1375.28,G-Staff Ltd,120173,29/11/2012,10176775
Resources & Corporate Governance ,Trade Waste Collection,WWC01,Agency Staff,0003,244.53,G-Staff Ltd,120173,29/11/2012,10176775
Resources & Corporate Governance ,Customer and Information Strategy,CIS10,Software Maintenance,0374,6300.00,Jadu Ltd,120407,01/11/2012,10175582
Resources & Corporate Governance ,Domestic Waste Collection,WWC00,Vehicle Repair and Maintenance,0200,506.00,Smartpower,121369,01/11/2012,10175340
Housing Revenue Account ,Supervision and Management General,MAN00,Publicity & Marketing,0377,1225.00,Janus Kreative,121748,08/11/2012,10175570
Resources & Corporate Governance ,"Communications, Consultation and Information Team",BTR20,Publicity & Marketing,0377,525.00,Janus Kreative,121748,15/11/2012,10176174
Resources & Corporate Governance ,General Administration,WAD00,Training fees,0011,1980.00,Outlook Training,122561,22/11/2012,10176561
Housing Revenue Account ,Supervision and Management General,MAN00,Subscriptions,0421,820.00,HQN Limited,122890,01/11/2012,10175583
Housing Revenue Account ,Supervision and Management General,MAN00,Subscriptions,0421,1095.00,HQN Limited,122890,08/11/2012,10175698
Sustainable Environment ,Street Scene,ENV30,Other Miscellaneous Expenses,0444,1385.00,Mancraft Fencing Ltd,122897,22/11/2012,10176108
Resources & Corporate Governance ,Highways,WHG00,Materials,0303,124.26,Brinklow Quarry,122921,22/11/2012,10175721
Housing Revenue Account ,Maintenance of Open Spaces,MOS00,External Contractor & Operator,0742,916.54,Brinklow Quarry,122921,22/11/2012,10175721
Resources & Corporate Governance ,Highways,WHG00,External Contractor & Operator,0742,23.84,Brinklow Quarry,122921,22/11/2012,10175721
Sustainable Environment ,Caldecott Park/Town Centre Area,PKS00,Maintenance of Equipment,0301,1280.11,Proludic,123148,01/11/2012,10175028
Resources & Corporate Governance ,Central Telephone Service,TEL00,Telephone Expenses,0371,1225.63,Cable & Wireless,123224,15/11/2012,10175962
Sustainable Environment ,Caldecott Park/Town Centre Area,PKS00,External Contractor & Operator,0742,892.50,Rigby Taylor Ltd,123342,01/11/2012,10175267
Resources & Corporate Governance ,Domestic Waste Collection,WWC00,Materials,0303,21840.00,SSI Schaefer Ltd,123543,22/11/2012,10176565
Resources & Corporate Governance ,"Communications, Consultation and Information Team",BTR20,Consultation,0378,575.00,Krishna Enterprises Ltd,123590,08/11/2012,10175778
Resources & Corporate Governance ,IT Procurement,CMP00,IT Capital Expenditure,5025,5212.50,Integra Associates Ltd,124585,22/11/2012,10176098
Capital Program ,Disabled Facilities Grant,REN01,Capital Grants,5014,11442.36,Wessex Lifts,125593,01/11/2012,10175540
Resources & Corporate Governance ,Garage Internal,WVR01,Materials,0303,786.62,Shell U.K. Oil Products Limited,125672,08/11/2012,10175906
Sustainable Environment ,Cemeteries General,CEM00,External Contractor & Operator,0742,592.98,Naturescape,126075,29/11/2012,10176983
Resources & Corporate Governance ,Corporate Property Management,CPM00,External Legal Costs,0741,1127.50,Eversheds,126086,08/11/2012,10173140
Capital Program ,Purchase of Vehicles,VHC00,Miscellaneous Capital Expenditure,5020,11658.00,Guest Trucks,126437,01/11/2012,10175079
Capital Program ,Purchase of Vehicles,VHC00,Miscellaneous Capital Expenditure,5020,11658.00,Guest Trucks,126437,01/11/2012,10175080
Resources & Corporate Governance,Handy man,WHM00,Contract Hire,0220,175.00,M P Hudson & Son,129334,15/11/2012,10176181
Resources & Corporate Governance,Handy man,WHM00,External Contractor & Operator,0742,732.50,M P Hudson & Son,129334,15/11/2012,10176181
Resources & Corporate Governance,Handy man,WHM00,External Contractor & Operator,0742,837.50,M P Hudson & Son,129334,22/11/2012,10176610
Resources & Corporate Governance,Handy man,WHM00,Contract Hire,0220,90.00,M P Hudson & Son,129334,29/11/2012,10176853
Resources & Corporate Governance,Handy man,WHM00,External Contractor & Operator,0742,546.87,M P Hudson & Son,129334,29/11/2012,10176853
Capital Program ,Heating Upgrades,HIM01,Capital Contract Payments,5000,878.40,National Grid Gas plc,130213,15/11/2012,10175895
Capital Program ,Heating Upgrades,HIM01,Capital Contract Payments,5000,740.40,National Grid Gas plc,130213,15/11/2012,10176055
Capital Program ,Heating Upgrades,HIM01,Capital Contract Payments,5000,858.00,National Grid Gas plc,130213,29/11/2012,10176930
Economy Development & Culture,Economic Development General,ECD00,Development Activities,0450,1500.00,Rugby First Limited - Town Centre,130214,08/11/2012,10175692
Resources & Corporate Governance ,Occupational Health and Welfare,OHW00,Training fees,0011,500.00,Kirsty Leatherbarrow,131006,01/11/2012,10175546
Sustainable Environment ,Caldecott Park/Town Centre Area,PKS00,External Contractor & Operator,0742,1253.00,I D Welding & Fabrications,131407,01/11/2012,10175100
Economy Development & Culture,Car Parks General,CPK01,Cash Collection,0744,1090.52,Jade Security Services Ltd,131711,15/11/2012,10176064
Economy Development & Culture,Decrim. of Car Parking on street parking,DPE02,Cash Collection,0744,591.84,Jade Security Services Ltd,131711,15/11/2012,10176065
Economy Development & Culture,Car Parks General,CPK01,Training fees,0011,177.00,Alpha Parking Ltd,131720,08/11/2012,10174913
Economy Development & Culture,Decrim. of Car Parking on street parking,DPE02,Training fees,0011,708.00,Alpha Parking Ltd,131720,08/11/2012,10174913
Capital Program ,Disabled Facilities Grant,REN01,Capital Grants,5014,2273.25,D K Builders,131946,01/11/2012,10175541
Capital Program ,Disabled Facilities Grant,REN01,Capital Grants,5014,1005.75,D K Builders,131946,15/11/2012,10176265
Capital Program ,Disabled Facilities Grant,REN01,Capital Grants,5014,4119.00,D K Builders,131946,29/11/2012,10176691
Capital Program ,Disabled Facilities Grant,REN01,Capital Grants,5014,4238.00,D K Builders,131946,29/11/2012,10176697
Economy Development & Culture,Car Parks General,CPK01,Other Agencies,0734,103.10,Chipside Limited,133289,15/11/2012,10176046
Economy Development & Culture,Decrim. of Car Parking on street parking,DPE02,Other Agencies,0734,412.40,Chipside Limited,133289,15/11/2012,10176046
Resources & Corporate Governance ,Highways,WHG00,Materials,0303,565.54,Breedon Aggregates England Limited,133309,01/11/2012,10175561
Resources & Corporate Governance ,Highways,WHG00,Materials,0303,705.95,Breedon Aggregates England Limited,133309,29/11/2012,10176079
Resources & Corporate Governance,Handy man,WHM00,External Contractor & Operator,0742,1275.59,Homecare Decorating,133884,22/11/2012,10176276
Resources & Corporate Governance,Handy man,WHM00,External Contractor & Operator,0742,1053.00,Homecare Decorating,133884,29/11/2012,10176763
Resources & Corporate Governance,Handy man,WHM00,External Contractor & Operator,0742,900.00,Homecare Decorating,133884,29/11/2012,10176771
Housing Revenue Account ,Unplanned Maintenance and Repair,UMR00,R&M External Contractors,0100,2637.39,Sunfish Services Ltd,133886,08/11/2012,10175744
Housing Revenue Account ,Sheltered Housing Team,MAN21,Estates,0457,1105.09,Sunfish Services Ltd,133886,08/11/2012,10175744
Sustainable Inclusive Communities,Woodside Park,TVR00,R&M External Contractors,0100,18.55,Delec Ltd,133887,01/11/2012,10175459
Housing Revenue Account ,Unplanned Maintenance and Repair,UMR00,R&M External Contractors,0100,4282.66,Delec Ltd,133887,01/11/2012,10175459
Capital Program ,Fire Risk Assessment,HCE18,Capital Contract Payments,5000,76.75,Delec Ltd,133887,01/11/2012,10175459
Housing Revenue Account ,Unplanned Maintenance and Repair,UMR00,R&M External Contractors,0100,3223.45,Delec Ltd,133887,08/11/2012,10175747
Housing Revenue Account ,Unplanned Maintenance and Repair,UMR00,R&M External Contractors,0100,988.19,Delec Ltd,133887,15/11/2012,10176040
Housing Revenue Account ,Unplanned Maintenance and Repair,UMR00,R&M External Contractors,0100,2018.05,Delec Ltd,133887,22/11/2012,10176468
Capital Program ,Bathroom Modifications,HIS01,Capital Contract Payments,5000,223.40,Delec Ltd,133887,22/11/2012,10176468
Housing Revenue Account ,Unplanned Maintenance and Repair,UMR00,R&M External Contractors,0100,2776.85,Delec Ltd,133887,29/11/2012,10176787
Housing Revenue Account ,Unplanned Maintenance and Repair,UMR00,R&M External Contractors,0100,9815.98,Delec Ltd,133887,29/11/2012,10176951
Economy Development & Culture,Grants and Subscriptions,LGS00,Grants To Voluntary Organisations,0720,516.00,Warwickshire Racial Equality Partnership,134811,29/11/2012,10177020
Sustainable Inclusive Communities,Housing Options Team,HOT00,Rents,0140,735.00,Leicester City Hotel Ltd,134996,22/11/2012,10176213
Resources & Corporate Governance ,Garage Internal,WVR01,Materials,0303,957.20,Brenntag UK Limited,135098,08/11/2012,10175373
Sustainable Inclusive Communities,CL Grants,CGS00,Grants To Voluntary Organisations,0720,2500.00,Brownsover Community Association,135180,01/11/2012,10175398
Resources & Corporate Governance ,Human Resources Centralised Services,RES31,Training fees,0011,1590.00,Staffordshire University,135454,08/11/2012,10175933
Housing Revenue Account ,Alfred Green Close AP,AGP01,Electricity,0130,355.55,Southern Electric,135653,22/11/2012,10176657
Housing Revenue Account ,Dickinson Court AP,AGP03,Electricity,0130,346.81,Southern Electric,135653,22/11/2012,10176657
Housing Revenue Account ,Frederick Press Way AP,AGP06,Electricity,0130,91.92,Southern Electric,135653,22/11/2012,10176657
Housing Revenue Account ,Stacey Court AP,AGP12,Electricity,0130,3.93,Southern Electric,135653,22/11/2012,10176657
Housing Revenue Account ,Albert Square AP,AGP20,Electricity,0130,4.50,Southern Electric,135653,22/11/2012,10176657
Housing Revenue Account ,Eliot Court AP,AGP25,Electricity,0130,74.66,Southern Electric,135653,22/11/2012,10176657
Housing Revenue Account ,Alexandra/James Court AP,AGP30,Electricity,0130,3.00,Southern Electric,135653,22/11/2012,10176657
Housing Revenue Account ,Hirst Close AP,AGP33,Electricity,0130,125.86,Southern Electric,135653,22/11/2012,10176657
Housing Revenue Account ,Bennett Court/Warwick Road AP,AGP38,Electricity,0130,0.90,Southern Electric,135653,22/11/2012,10176657
Housing Revenue Account ,Deepmore Road/Lytham Road AP,AGP42,Electricity,0130,200.24,Southern Electric,135653,22/11/2012,10176657
Housing Revenue Account ,Edmondson Close Dunchurch AP,AGP44,Electricity,0130,388.42,Southern Electric,135653,22/11/2012,10176657
Housing Revenue Account ,Fox Close AP,AGP47,Electricity,0130,34.44,Southern Electric,135653,22/11/2012,10176657
Housing Revenue Account ,Harold Cox Place AP,AGP51,Electricity,0130,139.75,Southern Electric,135653,22/11/2012,10176657
Housing Revenue Account ,Lever Road I AP,AGP57,Electricity,0130,45.99,Southern Electric,135653,22/11/2012,10176657
Housing Revenue Account ,Miscellaneous AP,AGP99,Electricity,0130,19.39,Southern Electric,135653,22/11/2012,10176657
Housing Revenue Account ,Supervision and Management General,MAN00,Electricity,0130,930.64,Southern Electric,135653,22/11/2012,10176657
Housing Revenue Account ,Multi-Storey Flats,MSF00,Electricity,0130,4.52,Southern Electric,135653,22/11/2012,10176657
Economy Development & Culture,Car Parks General,CPK01,Training fees,0011,190.00,Westlake Management Consultants Ltd,136108,29/11/2012,10177012
Economy Development & Culture,Decrim. of Car Parking on street parking,DPE02,Training fees,0011,760.00,Westlake Management Consultants Ltd,136108,29/11/2012,10177012
Resources & Corporate Governance ,Council Tax and NNDR Collection,CTX01,External Legal Costs,0741,922.00,Summers Nigh Law,136330,08/11/2012,10175749
Resources & Corporate Governance ,Council Tax and NNDR Collection,CTX01,External Legal Costs,0741,922.00,Summers Nigh Law,136330,08/11/2012,10175750
Resources & Corporate Governance ,General Financial Services,GFS00,Other Miscellaneous Expenses,0444,713.80,Motor Accident Protection Services Ltd,137571,08/11/2012,10175716
Resources & Corporate Governance ,Street Cleansing,WSC00,Materials,0303,687.50,Danline International Ltd,137588,08/11/2012,10175824
Capital Program ,Capital Partnership Fund,CGR01,Capital Grants,5014,3000.00,Rugby & Northampton Athletic Club,138672,15/11/2012,10176138
Economy Development & Culture,Grants and Subscriptions,LGS00,Grants To Voluntary Organisations,0720,760.00,Rugby & Northampton Athletic Club,138672,29/11/2012,10177019
Resources & Corporate Governance ,Borough Elections,ELC00,External Printing,0352,1048.66,Smith & Ouzman Ltd,138682,29/11/2012,10176613
Housing Revenue Account ,Unplanned Maintenance and Repair,UMR00,R&M External Contractors,0100,2172.96,Regent Office Care Ltd T/A Regent Cleaning,138934,01/11/2012,10175408
Housing Revenue Account ,Unplanned Maintenance and Repair,UMR00,R&M External Contractors,0100,1155.70,Regent Office Care Ltd T/A Regent Cleaning,138934,15/11/2012,10176041
Housing Revenue Account ,Sheltered Housing,AGP00,Contract Cleaning,0170,14297.47,Regent Office Care Ltd T/A Regent Cleaning,138934,22/11/2012,10176148
Sustainable Inclusive Communities,Housing Options Team,HOT00,Contract Cleaning,0170,134.76,Regent Office Care Ltd T/A Regent Cleaning,138934,22/11/2012,10176148
Housing Revenue Account ,Estate Management,MAN22,Contract Cleaning,0170,3078.90,Regent Office Care Ltd T/A Regent Cleaning,138934,22/11/2012,10176148
Housing Revenue Account ,Multi-Storey Flats,MSF00,Contract Cleaning,0170,1731.90,Regent Office Care Ltd T/A Regent Cleaning,138934,22/11/2012,10176148
Housing Revenue Account ,Unplanned Maintenance and Repair,UMR00,R&M External Contractors,0100,466.33,Regent Office Care Ltd T/A Regent Cleaning,138934,22/11/2012,10176653
Housing Revenue Account ,Unplanned Maintenance and Repair,UMR00,R&M External Contractors,0100,1662.77,Regent Office Care Ltd T/A Regent Cleaning,138934,29/11/2012,10176961
Resources & Corporate Governance ,Council Tax and NNDR Collection,CTX01,Software Maintenance,0374,2200.00,Mag:net Solutions Ltd,139547,01/11/2012,10174518
Housing Revenue Account ,Asbestos Surveys,UMR05,R&M External Contractors,0100,390.00,Rider Levett Bucknall UK Ltd,139918,01/11/2012,10175591
Capital Program ,Kitchen Modifications,HIK10,Capital Contract Payments,5000,130.00,Rider Levett Bucknall UK Ltd,139918,01/11/2012,10175591
Capital Program ,Electric to Gas Conversions,HIM04,Capital Contract Payments,5000,130.00,Rider Levett Bucknall UK Ltd,139918,01/11/2012,10175591
Economy Development & Culture,Planning General/Income,PLN00,Consultancy Costs,0740,800.00,P Rhodes,140076,01/11/2012,10175598
Resources & Corporate Governance ,Grounds Maintenance,WGM00,External Contractor & Operator,0742,1200.00,D J Whitlock Plant Hire,140156,22/11/2012,10176510
Resources & Corporate Governance ,Grounds Maintenance,WGM00,External Contractor & Operator,0742,1650.00,D J Whitlock Plant Hire,140156,22/11/2012,10176511
Resources & Corporate Governance ,Grounds Maintenance,WGM00,External Contractor & Operator,0742,1200.00,D J Whitlock Plant Hire,140156,22/11/2012,10176512
Resources & Corporate Governance ,Domestic Waste Collection,WWC00,Vehicle Repair and Maintenance,0200,684.00,Midlands Truck & Van Ltd,140322,22/11/2012,10176172
Resources & Corporate Governance ,Domestic Waste Collection,WWC00,Vehicle Repair and Maintenance,0200,1052.92,Midlands Truck & Van Ltd,140322,22/11/2012,10176622
Housing Revenue Account ,Property Maintenance,MAN23,External Contractor & Operator,0742,640.78,Carpenter Surveyors Ltd,141374,29/11/2012,10176784
Sustainable Inclusive Communities,Woodside Park,TVR00,R&M External Contractors,0100,671.00,Quadrant Security Group Limited,141441,08/11/2012,10175890
Resources & Corporate Governance ,Customer and Information Strategy,CIS10,Telephone Expenses,0371,793.16,Zen Internet Ltd,141612,29/11/2012,10176716
Sustainable Environment ,Street Scene,ENV30,Software/Equipment Licences,0379,1300.00,Cadassist Ltd,141618,15/11/2012,10176106
Housing Revenue Account ,Property Maintenance,MAN23,Consultancy Costs,0740,1020.00,Ascertiva Group Ltd,142076,01/11/2012,10175584
Capital Program ,Bathroom Modifications,HIS01,Capital Contract Payments,5000,15015.00,Ian Williams Ltd,142238,29/11/2012,10176018
Sustainable Environment ,Caldecott Park/Town Centre Area,PKS00,R&M External Contractors,0100,1005.00,Fountains Direct Limited,144391,08/11/2012,10175565
Housing Revenue Account ,Control Centre CCTV,CCE01,External Contractor & Operator,0742,15928.66,Securitas Security Personnel Ltd,145079,01/11/2012,10175600
Housing Revenue Account ,Property Maintenance,MAN23,Agency Staff,0003,1160.00,James Andrews Recruitment Solutions Ltd,145100,01/11/2012,10175547
Sustainable Inclusive Communities,Housing Strategy & Enabling,HSE00,Agency Staff,0003,607.17,James Andrews Recruitment Solutions Ltd,145100,08/11/2012,10175685
Sustainable Inclusive Communities,Housing Strategy & Enabling,HSE00,Agency Staff,0003,500.51,James Andrews Recruitment Solutions Ltd,145100,08/11/2012,10175923
Sustainable Inclusive Communities,Housing Strategy & Enabling,HSE00,Agency Staff,0003,500.51,James Andrews Recruitment Solutions Ltd,145100,08/11/2012,10175924
Housing Revenue Account ,Property Maintenance,MAN23,Agency Staff,0003,1208.60,James Andrews Recruitment Solutions Ltd,145100,08/11/2012,10175931
Housing Revenue Account ,Property Maintenance,MAN23,Agency Staff,0003,1160.00,James Andrews Recruitment Solutions Ltd,145100,22/11/2012,10176251
Sustainable Inclusive Communities,Housing Options Team,HOT00,Agency Staff,0003,615.38,James Andrews Recruitment Solutions Ltd,145100,22/11/2012,10176252
Housing Revenue Account ,Property Maintenance,MAN23,Agency Staff,0003,636.80,James Andrews Recruitment Solutions Ltd,145100,22/11/2012,10176508
Housing Revenue Account ,Property Maintenance,MAN23,Agency Staff,0003,1189.00,James Andrews Recruitment Solutions Ltd,145100,22/11/2012,10176648
Sustainable Inclusive Communities,Housing Options Team,HOT00,Agency Staff,0003,607.17,James Andrews Recruitment Solutions Ltd,145100,29/11/2012,10176948
Sustainable Inclusive Communities,Housing Options Team,HOT00,Agency Staff,0003,615.38,James Andrews Recruitment Solutions Ltd,145100,29/11/2012,10176949
Resources & Corporate Governance ,Street Cleansing,WSC00,Agency Staff,0003,959.89,Blue Arrow Limited,145492,08/11/2012,10175497
Resources & Corporate Governance ,Street Cleansing,WSC00,Agency Staff,0003,727.24,Blue Arrow Limited,145492,08/11/2012,10175498
Resources & Corporate Governance ,Street Cleansing,WSC00,Agency Staff,0003,859.34,Blue Arrow Limited,145492,08/11/2012,10175499
Resources & Corporate Governance ,Street Cleansing,WSC00,Agency Staff,0003,959.89,Blue Arrow Limited,145492,01/11/2012,10175500
Resources & Corporate Governance ,Street Cleansing,WSC00,Agency Staff,0003,964.89,Blue Arrow Limited,145492,08/11/2012,10175528
Resources & Corporate Governance ,Street Cleansing,WSC00,Agency Staff,0003,1273.94,Blue Arrow Limited,145492,15/11/2012,10175819
Resources & Corporate Governance ,Domestic Waste Collection,WWC00,Agency Staff,0003,166.35,Blue Arrow Limited,145492,15/11/2012,10175819
Resources & Corporate Governance ,Street Cleansing,WSC00,Agency Staff,0003,1072.96,Blue Arrow Limited,145492,29/11/2012,10176175
Resources & Corporate Governance ,Domestic Waste Collection,WWC00,Agency Staff,0003,175.95,Blue Arrow Limited,145492,29/11/2012,10176175
Resources & Corporate Governance,Handy man,WHM00,Agency Staff,0003,117.30,Blue Arrow Limited,145492,29/11/2012,10176557
Resources & Corporate Governance ,Street Cleansing,WSC00,Agency Staff,0003,560.57,Blue Arrow Limited,145492,29/11/2012,10176557
Resources & Corporate Governance ,Domestic Waste Collection,WWC00,Agency Staff,0003,313.87,Blue Arrow Limited,145492,29/11/2012,10176557
Resources & Corporate Governance,Handy man,WHM00,Agency Staff,0003,58.65,Blue Arrow Limited,145492,29/11/2012,10176859
Resources & Corporate Governance ,Street Cleansing,WSC00,Agency Staff,0003,574.78,Blue Arrow Limited,145492,29/11/2012,10176859
Resources & Corporate Governance ,Domestic Waste Collection,WWC00,Agency Staff,0003,230.69,Blue Arrow Limited,145492,29/11/2012,10176859
Resources & Corporate Governance,Handy man,WHM00,Materials,0303,400.00,REDACTED PERSONAL DATA,145507,22/11/2012,10176506
Housing Revenue Account ,Supervision and Management General,MAN00,Other Miscellaneous Expenses,0444,600.00,REDACTED PERSONAL DATA,145507,22/11/2012,10176506
Resources & Corporate Governance ,"Communications, Consultation and Information Team",BTR20,Consultation,0378,4850.00,Nortoft Partnerships Ltd,145573,15/11/2012,10176076
Housing Revenue Account ,Supervision and Management General,MAN00,Publicity & Marketing,0377,979.44,Impress Print,145574,22/11/2012,10176456
Resources & Corporate Governance,Handy man,WHM00,Tools,0304,1191.25,Midland Ladder Co Ltd,145680,01/11/2012,10175382
,Burglary,CAD03,Development Activities,0450,584.54,Montgomery Est Marketing Ltd,145770,08/11/2012,10175723
Resources & Corporate Governance ,Highways,WHG00,Materials,0303,476.13,Midland Rock Leicester Ltd,145830,29/11/2012,10176987
Economy Development & Culture,Visitor Centre,VSC00,Events Tickets - Standard Rated,1404,510.20,Stuart Travel UK,145896,22/11/2012,10176606
Sustainable Environment ,Crime and Disorder Activities,CAD00,Other Miscellaneous Expenses,0444,9500.00,Futures Unlocked,145956,01/11/2012,10175145
Capital Program ,Disabled Facilities Grant,REN01,Capital Grants,5014,4000.00,Inhouse Renovations,145963,22/11/2012,10176533
Economy Development & Culture,Grants and Subscriptions,LGS00,Grants To Voluntary Organisations,0720,1000.00,Rugby & East Warwickshire Hockey Club,146075,29/11/2012,10177018
Capital Program ,Pettiver Crescent,PCH00,Capital Contract Payments,5000,3945.00,Bradley Environmental Consultants Limited,146287,22/11/2012,10176238
Sustainable Environment ,Caldecott Park/Town Centre Area,PKS00,External Contractor & Operator,0742,525.00,UVS Sign & Design Ltd,146676,01/11/2012,10175152
Resources & Corporate Governance ,Toilet Cleaning,WBC01,Personal Protective Clothing,0340,9.30,ASKAS,146773,29/11/2012,10176592
Resources & Corporate Governance ,Grounds Maintenance,WGM00,Personal Protective Clothing,0340,97.61,ASKAS,146773,29/11/2012,10176592
Resources & Corporate Governance ,Highways,WHG00,Personal Protective Clothing,0340,13.91,ASKAS,146773,29/11/2012,10176592
Resources & Corporate Governance ,Street Cleansing,WSC00,Personal Protective Clothing,0340,111.56,ASKAS,146773,29/11/2012,10176592
Resources & Corporate Governance ,Garage Internal,WVR01,Personal Protective Clothing,0340,18.60,ASKAS,146773,29/11/2012,10176592
Resources & Corporate Governance ,Domestic Waste Collection,WWC00,Personal Protective Clothing,0340,195.22,ASKAS,146773,29/11/2012,10176592
Resources & Corporate Governance ,Trade Waste Collection,WWC01,Personal Protective Clothing,0340,18.60,ASKAS,146773,29/11/2012,10176592
Resources & Corporate Governance ,Human Resources Centralised Services,RES31,Training fees,0011,950.00,Mallard Consultancy Ltd,146807,22/11/2012,10176536
Economy Development & Culture,Building Control Services,BCS00,Postage & Distribution,0370,4.85,TNT Post Midlands Ltd,146983,01/11/2012,10175093
Economy Development & Culture,Building Regulation Fee Earning Account,BCS99,Postage & Distribution,0370,6.42,TNT Post Midlands Ltd,146983,01/11/2012,10175093
Resources & Corporate Governance,Central Business Support Services,CSS15,Postage & Distribution,0370,44.32,TNT Post Midlands Ltd,146983,01/11/2012,10175093
Resources & Corporate Governance ,Council Tax and NNDR Collection,CTX01,Postage & Distribution,0370,212.48,TNT Post Midlands Ltd,146983,01/11/2012,10175093
Resources & Corporate Governance ,Electoral Registration,ERG00,Postage & Distribution,0370,198.52,TNT Post Midlands Ltd,146983,01/11/2012,10175093
Sustainable Inclusive Communities,Housing Benefit Administration,HBA00,Postage & Distribution,0370,171.57,TNT Post Midlands Ltd,146983,01/11/2012,10175093
Housing Revenue Account ,Supervision and Management General,MAN00,Postage & Distribution,0370,1167.50,TNT Post Midlands Ltd,146983,01/11/2012,10175093
Resources & Corporate Governance ,General Administration,WAD00,Postage & Distribution,0370,1.71,TNT Post Midlands Ltd,146983,01/11/2012,10175093
Economy Development & Culture,Art Gallery and Museum,AGM00,Postage & Distribution,0370,0.28,TNT Post Midlands Ltd,146983,22/11/2012,10175763
Economy Development & Culture,Building Control Services,BCS00,Postage & Distribution,0370,8.70,TNT Post Midlands Ltd,146983,22/11/2012,10175763
Economy Development & Culture,Building Regulation Fee Earning Account,BCS99,Postage & Distribution,0370,11.54,TNT Post Midlands Ltd,146983,22/11/2012,10175763
Resources & Corporate Governance,Central Business Support Services,CSS15,Postage & Distribution,0370,73.82,TNT Post Midlands Ltd,146983,22/11/2012,10175763
Resources & Corporate Governance ,Council Tax and NNDR Collection,CTX01,Postage & Distribution,0370,171.26,TNT Post Midlands Ltd,146983,22/11/2012,10175763
Resources & Corporate Governance ,Electoral Registration,ERG00,Postage & Distribution,0370,162.62,TNT Post Midlands Ltd,146983,22/11/2012,10175763
Sustainable Inclusive Communities,Housing Benefit Administration,HBA00,Postage & Distribution,0370,206.41,TNT Post Midlands Ltd,146983,22/11/2012,10175763
Housing Revenue Account ,Supervision and Management General,MAN00,Postage & Distribution,0370,34.31,TNT Post Midlands Ltd,146983,22/11/2012,10175763
Resources & Corporate Governance ,General Administration,WAD00,Postage & Distribution,0370,6.97,TNT Post Midlands Ltd,146983,22/11/2012,10175763
Economy Development & Culture,Art Gallery and Museum,AGM00,Postage & Distribution,0370,223.80,TNT Post Midlands Ltd,146983,22/11/2012,10176331
Economy Development & Culture,Building Control Services,BCS00,Postage & Distribution,0370,7.36,TNT Post Midlands Ltd,146983,22/11/2012,10176331
Economy Development & Culture,Building Regulation Fee Earning Account,BCS99,Postage & Distribution,0370,9.76,TNT Post Midlands Ltd,146983,22/11/2012,10176331
Resources & Corporate Governance,Central Business Support Services,CSS15,Postage & Distribution,0370,62.82,TNT Post Midlands Ltd,146983,22/11/2012,10176331
Resources & Corporate Governance ,Council Tax and NNDR Collection,CTX01,Postage & Distribution,0370,215.83,TNT Post Midlands Ltd,146983,22/11/2012,10176331
Resources & Corporate Governance ,Electoral Registration,ERG00,Postage & Distribution,0370,59.79,TNT Post Midlands Ltd,146983,22/11/2012,10176331
Sustainable Inclusive Communities,Housing Benefit Administration,HBA00,Postage & Distribution,0370,276.27,TNT Post Midlands Ltd,146983,22/11/2012,10176331
Housing Revenue Account ,Supervision and Management General,MAN00,Postage & Distribution,0370,46.50,TNT Post Midlands Ltd,146983,22/11/2012,10176331
Resources & Corporate Governance ,General Administration,WAD00,Postage & Distribution,0370,3.99,TNT Post Midlands Ltd,146983,22/11/2012,10176331
Resources & Corporate Governance ,Customer and Information Strategy,CIS10,Hardware Maintenance,0376,4080.00,NTA Monitor Ltd,147036,15/11/2012,10175974
Housing Revenue Account ,Repainting Schemes,UMR02,R&M External Contractors,0100,12846.85,Bell Decorating Group Ltd,147075,08/11/2012,10175748
Housing Revenue Account ,Repainting Schemes,UMR02,R&M External Contractors,0100,4373.81,Bell Decorating Group Ltd,147075,22/11/2012,10176469
Capital Program ,Kitchen Modifications,HIK10,Capital Contract Payments,5000,23850.00,CLC Contractors Ltd,147076,22/11/2012,10176387
Housing Revenue Account ,Gas Heating Systems,UMR01,R&M External Contractors,0100,21984.22,Integral UK Ltd,147080,08/11/2012,10175494
Housing Revenue Account ,Unplanned Maintenance and Repair,UMR00,R&M External Contractors,0100,1060.09,Integral UK Ltd,147080,15/11/2012,10175593
Housing Revenue Account ,Gas Heating Systems,UMR01,R&M External Contractors,0100,831.03,Integral UK Ltd,147080,15/11/2012,10175593
Housing Revenue Account ,Carbon Monoxide Detectors,UMR07,R&M External Contractors,0100,1648.53,Integral UK Ltd,147080,15/11/2012,10175593
Capital Program ,Disabled Adaptations,HCR01,Capital Contract Payments,5000,14307.68,Intelligent Disabled Solutions Ltd,147081,29/11/2012,10176957
Sustainable Environment ,Caldecott Park/Town Centre Area,PKS00,R&M External Contractors,0100,700.00,K A Cooke Limited,147120,08/11/2012,10175578
Capital Program ,Depot and Recycling Improvements,RCY02,Capital Contract Payments,5000,1950.00,K A Cooke Limited,147120,08/11/2012,10175579
Capital Program ,Queen's Diamond Jubilee Leisure Centre Project,LEI03,Capital Contract Payments,5000,4428.75,B3 Architects,147190,08/11/2012,10175468
Resources & Corporate Governance ,Human Resources Centralised Services,RES31,Training fees,0011,582.00,Globe Training,147192,01/11/2012,10175381
Resources & Corporate Governance ,WSU Depot,WDP00,Messing Facilities,0332,631.15,C H Electrical (Leics) Ltd,147209,01/11/2012,10175480
Resources & Corporate Governance,Handy man,WHM00,Tools,0304,911.78,ECA Supplies (Coventry) Limited,147276,15/11/2012,10175852
Resources & Corporate Governance,Handy man,WHM00,Materials,0303,1462.25,ECA Supplies (Coventry) Limited,147276,15/11/2012,10175856
Resources & Corporate Governance,Handy man,WHM00,Tools,0304,1444.95,ECA Supplies (Coventry) Limited,147276,15/11/2012,10175857
Resources & Corporate Governance,Handy man,WHM00,Materials,0303,738.27,ECA Supplies (Coventry) Limited,147276,15/11/2012,10175864
Capital Program ,Heating Upgrades,HIM01,Capital Contract Payments,5000,94461.00,Liberty Gas Group,147368,29/11/2012,10176586
Resources & Corporate Governance ,Domestic Waste Collection,WWC00,Contract Hire,0220,1650.00,Trash UK Limited,147379,15/11/2012,10176105
Resources & Corporate Governance ,IT Procurement,CMP00,IT Capital Expenditure,5025,27580.00,Commercial IT Services Ltd,147434,29/11/2012,10176616
Resources & Corporate Governance ,IT Procurement,CMP00,IT Capital Expenditure,5025,5877.17,Commercial IT Services Ltd,147434,29/11/2012,10176617
Resources & Corporate Governance ,IT Procurement,CMP00,IT Capital Expenditure,5025,12190.00,Commercial IT Services Ltd,147434,29/11/2012,10176618
Capital Program ,Kitchen Modifications,HIK10,Capital Contract Payments,5000,8269.98,Rixonway Kitchens Ltd,147446,22/11/2012,10176153
Capital Program ,Kitchen Modifications,HIK10,Capital Contract Payments,5000,7842.08,Rixonway Kitchens Ltd,147446,29/11/2012,10176154
Capital Program ,Kitchen Modifications,HIK10,Capital Contract Payments,5000,4542.67,Rixonway Kitchens Ltd,147446,22/11/2012,10176253
Resources & Corporate Governance,Handy man,WHM00,Materials,0303,1751.95,Robert Pochin Limited,147536,15/11/2012,10174293
Resources & Corporate Governance,Handy man,WHM00,Materials,0303,508.10,Robert Pochin Limited,147536,08/11/2012,10175385
Resources & Corporate Governance,Handy man,WHM00,Materials,0303,554.55,Robert Pochin Limited,147536,15/11/2012,10175574
Capital Program ,Crematorium Project,BUR04,Capital Contract Payments,5000,800.00,Mr David Taylor,147537,01/11/2012,10175464
Capital Program ,Disabled Facilities Grant,REN01,Capital Grants,5014,4090.00,Pollards Property Solution,147541,08/11/2012,10175902
Capital Program ,Disabled Facilities Grant,REN01,Capital Grants,5014,4925.00,Pollards Property Solution,147541,22/11/2012,10176484
Capital Program ,Disabled Facilities Grant,REN01,Capital Grants,5014,3395.00,Pollards Property Solution,147541,29/11/2012,10176692
Capital Program ,Open Spaces Refurbishment,LEI08,Capital Contract Payments,5000,935.99,Gavin Jones (Midlands) Ltd,147569,29/11/2012,10177011
Resources & Corporate Governance,Corporate Property R&M,CPA01,R&M External Contractors,0100,1086.65,Hygienic Concepts,147630,15/11/2012,10176042
Sustainable Environment ,Street Scene,ENV30,Development Activities,0450,790.00,Real Christmas Trees Ltd,147662,22/11/2012,10176569
Resources & Corporate Governance ,Grounds Maintenance,WGM00,Vehicle Repair and Maintenance,0200,773.90,Chris Tallis Farm Machinery Limited,147758,22/11/2012,10176160
Sustainable Environment ,Crime and Disorder Activities,CAD00,Other Miscellaneous Expenses,0444,750.00,Community Information Services Ltd,147761,08/11/2012,10175655
Capital Program ,Viaduct Cycleways,CYC02,Capital Contract Payments,5000,43567.03,Currall Lewis & Martin (Construction) Ltd,147769,29/11/2012,10176847
Capital Program ,Great Central Walk Bridge,LEI14,Capital Contract Payments,5000,9089.61,Currall Lewis & Martin (Construction) Ltd,147769,29/11/2012,10176923
Resources & Corporate Governance ,WSU Depot,WDP00,Messing Facilities,0332,6550.00,Cole Creative Communications Ltd,147857,08/11/2012,10175564
Resources & Corporate Governance ,"Communications, Consultation and Information Team",BTR20,Publicity & Marketing,0377,4000.00,Cole Creative Communications Ltd,147857,08/11/2012,10175564
Resources & Corporate Governance ,Grounds Maintenance,WGM00,Agency Staff,0003,308.94,3b2 Recruitment Ltd T/A Darren Bell Recruitment,147938,01/11/2012,10175363
Resources & Corporate Governance ,Domestic Waste Collection,WWC00,Agency Staff,0003,1240.42,3b2 Recruitment Ltd T/A Darren Bell Recruitment,147938,01/11/2012,10175363
Resources & Corporate Governance ,Grounds Maintenance,WGM00,Agency Staff,0003,65.04,3b2 Recruitment Ltd T/A Darren Bell Recruitment,147938,01/11/2012,10175364
Resources & Corporate Governance ,Domestic Waste Collection,WWC00,Agency Staff,0003,649.96,3b2 Recruitment Ltd T/A Darren Bell Recruitment,147938,01/11/2012,10175364
Capital Program ,Queen's Diamond Jubilee Leisure Centre Project,LEI03,Capital Contract Payments,5000,495337.77,Shepherd Construction Ltd,148014,15/11/2012,10176122
Resources & Corporate Governance,Handy man,WHM00,External Contractor & Operator,0742,540.00,Dean Hudson,148035,15/11/2012,10176248
Resources & Corporate Governance,Handy man,WHM00,External Contractor & Operator,0742,540.00,Dean Hudson,148035,22/11/2012,10176609
Capital Program ,Pettiver Crescent,PCH00,Capital Contract Payments,5000,2584.13,Western Power Distribution,148103,15/11/2012,10176043
Capital Program ,Pettiver Crescent,PCH00,Capital Contract Payments,5000,880.53,Western Power Distribution,148103,22/11/2012,10176211
Capital Program ,Corporate Property Enhancements,CPE00,Capital Contract Payments,5000,2000.00,The Engineering Practice Ltd,148180,08/11/2012,10175959
Capital Program ,Corporate Property Enhancements,CPE00,Capital Contract Payments,5000,937.90,The Engineering Practice Ltd,148180,15/11/2012,10175960
,Balance Sheet,BS,Car Salary Sacrifice,9243,527.61,Fleethire Ltd,148197,08/11/2012,10175918
,Balance Sheet,BS,Car Salary Sacrifice,9243,527.61,Fleethire Ltd,148197,08/11/2012,10175919
Capital Program ,Open Spaces Refurbishment,LEI08,Capital Contract Payments,5000,7178.00,Queensbury Shelters Ltd,148282,08/11/2012,10175562
Capital Program ,Open Spaces Refurbishment,LEI08,Capital Contract Payments,5000,9600.00,Queensbury Shelters Ltd,148282,08/11/2012,10175563
Sustainable Inclusive Communities,Woodside Park,TVR00,External Contractor & Operator,0742,960.00,Suck'cess,148285,22/11/2012,10176226
Resources & Corporate Governance ,Customer and Information Strategy,CIS10,New Equipment,0300,2131.51,Softcat Ltd,148394,22/11/2012,10175095
Resources & Corporate Governance ,Customer and Information Strategy,CIS10,Consultancy Costs,0740,7162.25,Softcat Ltd,148394,22/11/2012,10175095
Resources & Corporate Governance ,Domestic Waste Collection,WWC00,Contract Hire,0220,3428.00,Pakawaste Limited,148436,22/11/2012,10176158
Economy Development & Culture,Car Parks General,CPK01,New Equipment,0300,103.00,Edesix Ltd,148470,29/11/2012,10174610
Economy Development & Culture,Decrim. of Car Parking on street parking,DPE02,New Equipment,0300,412.00,Edesix Ltd,148470,29/11/2012,10174610
Capital Program ,Corporate Property Enhancements,CPE00,Capital Contract Payments,5000,46223.55,Envirotech Building Services Ltd,148501,15/11/2012,10175714
Sustainable Inclusive Communities,Housing Strategy & Enabling,HSE00,Training fees,0011,300.00,Centre for Housing & Support,148513,01/11/2012,10175554
Resources & Corporate Governance ,Human Resources Centralised Services,RES31,Training fees,0011,600.00,Centre for Housing & Support,148513,01/11/2012,10175554
Capital Program ,Capital Partnership Fund,CGR01,Capital Grants,5014,3900.00,Rugby Foodbank,148531,01/11/2012,10175413
,Private Watercourses,LDR02,External Contractor & Operator,0742,500.00,REDACTED PERSONAL DATA,148537,01/11/2012,10175474
Economy Development & Culture,Sports and Recreation,LSD03,Development Activities,0450,504.40,Mountain Monkeys,148538,01/11/2012,10175462
Resources & Corporate Governance ,Financial Services,RES10,Training fees,0011,915.00,REDACTED PERSONAL DATA,148545,15/11/2012,10176061
Resources & Corporate Governance ,General Financial Services,GFS00,Other Insurance Premiums,0440,3000.00,JLT Specialty Limited,148557,15/11/2012,10175880
Economy Development & Culture,Planning General/Income,PLN00,Fees & Charges - Outside Scope,1403,850.00,REDACTED PERSONAL DATA,148564,08/11/2012,10175963
Economy Development & Culture,Planning General/Income,PLN00,Fees & Charges - Outside Scope,1403,4020.00,Speedy Support Services Ltd c/o Signet Planning,148576,15/11/2012,10176203
Sustainable Inclusive Communities,CL Grants,CGS00,Grants To Voluntary Organisations,0720,5000.00,Circles Network,148603,29/11/2012,10176782
Economy Development & Culture,Grants and Subscriptions,LGS00,Grants To Voluntary Organisations,0720,1000.00,Rugby Junior Triathlon Club,148619,29/11/2012,10177017
,Balance Sheet,BS,Contributions To NNDR Pool,9476,1802083.00,Department for Communities & Local Govt,,01/11/2012,
,Balance Sheet,BS,Contributions To NNDR Pool,9476,1802082.00,Department for Communities & Local Govt,,22/11/2012,
,Legal Services,DEM20,Professional Subscriptions,0011,590.00,REDACTED PERSONAL DATA,,08/11/2012,
Resources & Corporate Governance ,General Financial Services,GFS00,Payment Card Costs,0444,983.45,Capita,,28/11/2012,
